fUSD/lending_fUSD_20250308
["ID","MTS","AMOUNT","RATE_DAILY","PERIOD"]
[355653417,1741438585794,-500.0,8.219e-05,2]
[355653418,1741438585820,-513.64675207,8.219e-05,2]
[355653419,1741438585846,-500.0,8.219e-05,2]
[355653420,1741438585871,-500.0,8.219e-05,2]
[355653421,1741438585897,-579.67,8.219e-05,2]
[355653422,1741438585922,-509.05680105,8.219e-05,2]
[355653423,1741438585951,-301.61374571,8.219e-05,2]
[355653424,1741438585977,-500.0,8.219e-05,2]
[355653425,1741438586003,-506.55932035,8.219e-05,2]
[355653426,1741438586027,-500.0,8.219e-05,2]
[355653427,1741438586052,-500.0,8.219e-05,2]
[355653428,1741438586075,-637.4,8.219e-05,2]
[355653429,1741438586105,-500.0,8.219e-05,2]
[355653430,1741438586130,-500.0,8.219e-05,2]
[355653431,1741438586156,-500.0,8.219e-05,2]
[355653432,1741438586181,-507.20715426,8.219e-05,2]
[355653433,1741438586206,-500.0,8.219e-05,2]
[355653434,1741438586231,-500.0,8.219e-05,2]
[355653435,1741438586256,-511.16496282,8.219e-05,2]
[355653436,1741438586281,-500.0,8.219e-05,2]
[355653437,1741438586306,-500.0,8.219e-05,2]
[355653438,1741438586330,-501.30686836,8.219e-05,2]
[355653439,1741438586356,-948.68,8.219e-05,2]
[355653440,1741438586381,-872.75,8.219e-05,2]
[355653441,1741438586406,-500.0,8.219e-05,2]
[355653442,1741438586430,-500.0,8.219e-05,2]
[355653443,1741438586455,-501.52679746,8.219e-05,2]
[355653444,1741438586480,-506.74940504,8.219e-05,2]
[355653445,1741438586505,-500.0,8.219e-05,2]
[355653446,1741438586528,-500.0,8.219e-05,2]
[355653447,1741438586552,-500.0,8.219e-05,2]
[355653448,1741438586581,-644.24,8.219e-05,2]
[355653449,1741438586607,-719.52,8.219e-05,2]
[355653450,1741438586632,-575.5,8.219e-05,2]
[355653451,1741438586657,-500.0,8.219e-05,2]
[355653452,1741438586682,-500.0,8.219e-05,2]
[355653453,1741438586706,-500.0,8.219e-05,2]
[355653454,1741438586732,-500.0,8.219e-05,2]
[355653455,1741438586758,-500.0,8.219e-05,2]
[355653456,1741438586784,-500.0,8.219e-05,2]
[355653457,1741438586811,-1637.24,8.219e-05,2]
[355653458,1741438586835,-500.0,8.219e-05,2]
[355653459,1741438586859,-500.0,8.219e-05,2]
[355653460,1741438586883,-500.0,8.219e-05,2]
[355653461,1741438586907,-500.0,8.219e-05,2]
[355653462,1741438586932,-733.07,8.219e-05,2]
[355653463,1741438586957,-1114.19,8.219e-05,2]
[355653464,1741438586983,-739.02,8.219e-05,2]
[355653465,1741438587009,-500.0,8.219e-05,2]
[355653466,1741438587034,-500.0,8.219e-05,2]
[355653467,1741438587059,-500.0,8.219e-05,2]
[355653468,1741438587085,-500.0,8.219e-05,2]
[355653469,1741438587109,-500.0,8.219e-05,2]
[355653470,1741438587135,-500.0,8.219e-05,2]
[355653471,1741438587160,-500.0,8.219e-05,2]
[355653472,1741438587185,-500.0,8.219e-05,2]
[355653473,1741438587212,-1810.88,8.219e-05,2]
[355653474,1741438587241,-500.0,8.219e-05,2]
[355653475,1741438587266,-500.0,8.219e-05,2]
[355653476,1741438587290,-500.0,8.219e-05,2]
[355653477,1741438587316,-500.0,8.219e-05,2]
[355653478,1741438587341,-500.0,8.219e-05,2]
[355653479,1741438587365,-500.0,8.219e-05,2]
[355653480,1741438587389,-500.0,8.219e-05,2]
[355653481,1741438587415,-500.0,8.219e-05,2]
[355653482,1741438587439,-500.0,8.219e-05,2]
[355653483,1741438587462,-500.0,8.219e-05,2]
[355653484,1741438587488,-500.42376506,8.219e-05,2]
[355653485,1741438587514,-509.28952208,8.219e-05,2]
[355653486,1741438587538,-500.0,8.219e-05,2]
[355653487,1741438587563,-500.0,8.219e-05,2]
[355653488,1741438587591,-640.5,8.219e-05,2]
[355653489,1741438587619,-500.0,8.219e-05,2]
[355653490,1741438587645,-500.0,8.219e-05,2]
[355653491,1741438587683,-500.0,8.219e-05,2]
[355653492,1741438587714,-500.0,8.219e-05,2]
[355653493,1741438587741,-500.0,8.219e-05,2]
[355653494,1741438587768,-500.0,8.219e-05,2]
[355653495,1741438587794,-500.0,8.219e-05,2]
[355653496,1741438587820,-500.0,8.219e-05,2]
[355653497,1741438587847,-500.0,8.219e-05,2]
[355653498,1741438587875,-500.0,8.219e-05,2]
[355653499,1741438587902,-509.68,8.219e-05,2]
[355653500,1741438587928,-572.77,8.219e-05,2]
[355653501,1741438587954,-500.0,8.219e-05,2]
[355653502,1741438587980,-500.0,8.219e-05,2]
[355653503,1741438588007,-500.0,8.219e-05,2]
[355653504,1741438588035,-693.59,8.219e-05,2]
[355653505,1741438588064,-500.0,8.219e-05,2]
[355653506,1741438588091,-500.0,8.219e-05,2]
[355653507,1741438588118,-500.0,8.219e-05,2]
[355653508,1741438588146,-500.0,8.219e-05,2]
[355653509,1741438588174,-600.33627845,8.219e-05,2]
[355653510,1741438588203,-500.0,8.219e-05,2]
[355653511,1741438588231,-500.0,8.219e-05,2]
[355653512,1741438588257,-300.0,8.219e-05,2]
[355653513,1741438588281,-506.22265135,8.219e-05,2]
[355653514,1741438588311,-500.0,8.219e-05,2]
[355653515,1741438588340,-507.71122117,8.219e-05,2]
[355653516,1741438588366,-560.43,8.219e-05,2]
[355653517,1741438588392,-500.0,8.219e-05,2]
[355653518,1741438588419,-500.0,8.219e-05,2]
[355653519,1741438588446,-500.0,8.219e-05,2]
[355653520,1741438588472,-500.0,8.219e-05,2]
[355653521,1741438588498,-500.0,8.219e-05,2]
[355653522,1741438588524,-500.0,8.219e-05,2]
[355653523,1741438588550,-500.0,8.219e-05,2]
[355653524,1741438588578,-500.0,8.219e-05,2]
[355653525,1741438588603,-500.0,8.219e-05,2]
[355653526,1741438588629,-500.0,8.219e-05,2]
[355653527,1741438588656,-500.0,8.219e-05,2]
[355653528,1741438588681,-500.0,8.219e-05,2]
[355653529,1741438588708,-500.0,8.219e-05,2]
[355653530,1741438588733,-1039.55,8.219e-05,2]
[355653531,1741438588759,-720.52,8.219e-05,2]
[355653532,1741438588784,-500.0,8.219e-05,2]
[355653533,1741438589068,-500.0,8.219e-05,2]
[355653534,1741438589094,-682.26,8.219e-05,2]
[355653535,1741438589121,-828.07,8.219e-05,2]
[355653536,1741438589152,-500.0,8.219e-05,2]
[355653537,1741438589180,-500.0,8.219e-05,2]
[355653538,1741438589206,-500.0,8.219e-05,2]
[355653539,1741438589233,-800.13,8.219e-05,2]
[355653540,1741438589259,-500.0,8.219e-05,2]
[355653541,1741438589285,-500.0,8.219e-05,2]
[355653542,1741438589308,-500.0,8.219e-05,2]
[355653543,1741438589333,-500.0,8.219e-05,2]
[355653544,1741438589358,-500.0,8.219e-05,2]
[355653545,1741438589383,-676.74,8.219e-05,2]
[355653546,1741438589408,-500.0,8.219e-05,2]
[355653547,1741438589433,-500.0,8.219e-05,2]
[355653548,1741438589461,-502.13085427,8.219e-05,2]
[355653549,1741438589486,-500.0,8.219e-05,2]
[355653550,1741438589512,-662.52,8.219e-05,2]
[355653551,1741438589538,-500.0,8.219e-05,2]
[355653552,1741438589562,-500.0,8.219e-05,2]
[355653553,1741438589591,-500.0,8.219e-05,2]
[355653554,1741438589617,-1224.66,8.219e-05,2]
[355653555,1741438589642,-944.86,8.219e-05,2]
[355653556,1741438589666,-500.0,8.219e-05,2]
[355653557,1741438589691,-556.71,8.219e-05,2]
[355653558,1741438589715,-501.15630572,8.219e-05,2]
[355653559,1741438589739,-500.0,8.219e-05,2]
[355653560,1741438589764,-440.53236446,8.219e-05,2]
[355653561,1741438642540,227.32,7.579e-05,2]
[355653562,1741438709541,1081.141,8.055e-05,2]
[355653563,1741438848850,50000.0,0.00025895,30]
[355653564,1741438855426,50000.0,0.00025895,31]
[355653565,1741438858659,50000.0,0.00025895,32]
[355653566,1741438862243,50000.0,0.00025895,33]
[355653567,1741438865031,50000.0,0.00025895,34]
[355653568,1741438867868,50000.0,0.00025895,35]
[355653569,1741438870754,50000.0,0.00025895,36]
[355653570,1741438874517,50000.0,0.00025895,37]
[355653571,1741438877896,50000.0,0.00025895,38]
[355653572,1741438881230,50000.0,0.00025895,39]
[355653573,1741438946576,3374.98066475,7.541e-05,2]
[355653574,1741438946607,10000.0,7.541e-05,2]
[355653575,1741438946636,10000.0,7.541e-05,2]
[355653576,1741438946665,525.01933525,7.541e-05,2]
[355653577,1741438948067,848.64,7.541e-05,2]
[355653578,1741438978818,582.04,7.541e-05,2]
[355653579,1741438982024,-500.0,8.219e-05,7]
[355653580,1741438982078,-900.0,8.4e-05,3]
[355653581,1741438982101,-1035.18144885,8.491e-05,3]
[355653582,1741438982124,-623.67146962,8.492e-05,3]
[355653583,1741438982158,-500.0,8.493e-05,7]
[355653584,1741438982197,-1800.0,8.5e-05,3]
[355653585,1741438982220,-1400.0,8.5e-05,3]
[355653586,1741438982243,-2400.0,8.6e-05,3]
[355653587,1741438982265,-1900.0,8.6e-05,3]
[355653588,1741438982287,-3000.0,8.7e-05,3]
[355653589,1741438982310,-2400.0,8.7e-05,3]
[355653590,1741438998227,1532.50774327,0.00025895,120]
[355653591,1741438999806,-500.0,8.767e-05,7]
[355653592,1741438999842,-600.0,8.8e-05,3]
[355653593,1741439000093,-400.0,8.8e-05,3]
[355653594,1741439026330,1881.5818938,0.00025895,120]
[355653595,1741439032007,-600.0,8.9e-05,3]
[355653596,1741439032031,-400.0,8.9e-05,3]
[355653597,1741439032054,-600.0,9e-05,3]
[355653598,1741439032076,-400.0,9e-05,3]
[355653599,1741439032139,-150.0,9.562e-05,7]
[355653600,1741439032204,-19891.14708153,9.9e-05,3]
[355653601,1741439056036,5000.0,0.00025895,120]
[355653616,1741439179603,50000.0,0.00025895,30]
[355653617,1741439184665,50000.0,0.00025895,31]
[355653618,1741439187719,50000.0,0.00025895,32]
[355653619,1741439191049,50000.0,0.00025895,33]
[355653620,1741439194723,50000.0,0.00025895,34]
[355653621,1741439198057,50000.0,0.00025895,35]
[355653622,1741439201486,50000.0,0.00025895,36]
[355653623,1741439205005,50000.0,0.00025895,37]
[355653624,1741439214416,50000.0,0.00025895,38]
[355653625,1741439218039,50000.0,0.00025895,39]
[355653640,1741439240281,159.73,7.679e-05,2]
[355653664,1741439432391,-443.87372541,8.119e-05,2]
[355653665,1741439432403,-1142.64707459,8.119e-05,2]
[355653666,1741439432412,-342.9626,8.119e-05,2]
[355653667,1741439432422,-150.0,8.131e-05,2]
[355653668,1741439432432,-872.646,8.192e-05,2]
[355653669,1741439432452,-151.274,8.192e-05,2]
[355653670,1741439432462,-3931.0,8.192e-05,2]
[355653671,1741439432472,-500.3426349,8.193e-05,2]
[355653672,1741439432482,-150.0,8.218e-05,2]
[355653673,1741439432492,-300.0,8.218e-05,2]
[355653674,1741439432503,-500.0,8.219e-05,2]
[355653675,1741439432513,-500.0,8.219e-05,2]
[355653676,1741439432523,-328.39328346,8.219e-05,2]
[355653677,1741439432533,-330.73440705,8.219e-05,2]
[355653678,1741439432613,-169.26559295,8.219e-05,2]
[355653679,1741439432623,-500.70337679,8.219e-05,2]
[355653680,1741439432633,-235.56523026,8.219e-05,2]
[355653681,1741439432722,-234.24512744,8.219e-05,2]
[355653682,1741439432732,-232.82214256,8.219e-05,2]
[355653786,1741439437515,2026.21,7.726e-05,2]
[355653788,1741439438439,-1113.0,8.192e-05,2]
[355653789,1741439438450,-282.67650727,8.219e-05,2]
[355653790,1741439438462,-500.0,8.219e-05,2]
[355653791,1741439438477,-515.7182108,8.219e-05,2]
[355653792,1741439438487,-500.0,8.219e-05,2]
[355653793,1741439438499,-500.0,8.219e-05,2]
[355653794,1741439438509,-500.0,8.219e-05,2]
[355653795,1741439438519,-509.10093333,8.219e-05,2]
[355653796,1741439438529,-500.0,8.219e-05,2]
[355653797,1741439438539,-500.0,8.219e-05,2]
[355653798,1741439438549,-326.32602943,8.219e-05,2]
[355653799,1741439438559,-503.35941309,8.219e-05,2]
[355653800,1741439438569,-293.2513583,8.219e-05,2]
[355653801,1741439438579,-501.05050429,8.219e-05,2]
[355653802,1741439438589,-510.66754818,8.219e-05,2]
[355653803,1741439438599,-524.56045713,8.219e-05,2]
[355653804,1741439438608,-543.67256014,8.219e-05,2]
[355653806,1741439438617,-371.99378,8.219e-05,2]
[355654028,1741439440515,-136.08880089,8.219e-05,2]
[355654031,1741439440524,-500.0,8.219e-05,2]
[355654034,1741439440534,-98.3359649,8.219e-05,2]
[355654036,1741439440545,-252.68200001,8.219e-05,2]
[355654197,1741439442041,-148.98203509,8.219e-05,2]
[355654199,1741439442050,-423.31654741,8.219e-05,2]
[355654273,1741439443393,-76.68345259,8.219e-05,2]
[355654274,1741439443403,-297.7477738,8.219e-05,2]
[355654275,1741439443464,-0.06755895,8.219e-05,2]
[355654285,1741439444903,-202.18466725,8.219e-05,2]
[355654286,1741439444913,-500.0,8.219e-05,2]
[355654287,1741439444922,-500.0,8.219e-05,2]
[355654288,1741439444931,-90.94266922,8.219e-05,2]
[355654292,1741439446443,-409.05733078,8.219e-05,2]
[355654293,1741439446452,-500.0,8.219e-05,2]
[355654294,1741439446462,-504.14970068,8.219e-05,2]
[355654295,1741439446472,-507.40970141,8.219e-05,2]
[355654296,1741439446481,-623.6896476,8.219e-05,2]
[355654297,1741439446491,-519.00145365,8.219e-05,2]
[355654298,1741439446501,-500.0,8.219e-05,2]
[355654299,1741439446511,-500.0,8.219e-05,2]
[355654300,1741439446521,-500.0,8.219e-05,2]
[355654301,1741439446531,-158.2891317,8.219e-05,2]
[355654302,1741439446540,-500.0,8.219e-05,2]
[355654303,1741439446550,-500.0,8.219e-05,2]
[355654304,1741439446559,-500.0,8.219e-05,2]
[355654305,1741439446568,-500.0,8.219e-05,2]
[355654306,1741439446577,-715.98,8.219e-05,2]
[355654307,1741439446587,-500.0,8.219e-05,2]
[355654308,1741439446598,-500.0,8.219e-05,2]
[355654309,1741439446608,-500.0,8.219e-05,2]
[355654310,1741439446617,-500.0,8.219e-05,2]
[355654311,1741439446629,-500.0,8.219e-05,2]
[355654312,1741439446639,-549.58,8.219e-05,2]
[355654313,1741439446648,-500.0,8.219e-05,2]
[355654314,1741439446657,-500.0,8.219e-05,2]
[355654315,1741439446667,-500.0,8.219e-05,2]
[355654316,1741439446677,-527.07943717,8.219e-05,2]
[355654317,1741439446686,-500.0,8.219e-05,2]
[355654318,1741439446696,-587.73,8.219e-05,2]
[355654319,1741439446706,-500.0,8.219e-05,2]
[355654320,1741439446716,-500.0,8.219e-05,2]
[355654321,1741439446725,-500.0,8.219e-05,2]
[355654322,1741439446735,-389.17894701,8.219e-05,2]
[355654323,1741439446748,-110.82105299,8.219e-05,2]
[355654324,1741439446757,-500.0,8.219e-05,2]
[355654325,1741439446767,-500.0,8.219e-05,2]
[355654326,1741439446777,-501.57633495,8.219e-05,2]
[355654328,1741439446786,-500.0,8.219e-05,2]
[355654329,1741439446795,-567.25,8.219e-05,2]
[355654330,1741439446804,-500.0,8.219e-05,2]
[355654332,1741439446813,-500.0,8.219e-05,2]
[355654334,1741439446826,-500.0,8.219e-05,2]
[355654335,1741439446837,-500.0,8.219e-05,2]
[355654336,1741439446847,-507.6526979,8.219e-05,2]
[355654337,1741439446856,-500.0,8.219e-05,2]
[355654338,1741439446867,-298.51750845,8.219e-05,2]
[355654339,1741439446887,-201.48249155,8.219e-05,2]
[355654340,1741439446896,-500.0,8.219e-05,2]
[355654341,1741439446910,-500.0,8.219e-05,2]
[355654342,1741439446921,-500.0,8.219e-05,2]
[355654343,1741439446930,-500.0,8.219e-05,2]
[355654344,1741439446939,-500.0,8.219e-05,2]
[355654345,1741439446949,-500.0,8.219e-05,2]
[355654346,1741439446958,-200.65386368,8.219e-05,2]
[355654347,1741439446968,-500.0,8.219e-05,2]
[355654348,1741439446977,-500.0,8.219e-05,2]
[355654349,1741439446986,-500.0,8.219e-05,2]
[355654350,1741439446996,-500.0,8.219e-05,2]
[355654351,1741439447006,-500.0,8.219e-05,2]
[355654352,1741439447016,-500.0,8.219e-05,2]
[355654353,1741439447025,-500.0,8.219e-05,2]
[355654354,1741439447034,-617.33,8.219e-05,2]
[355654355,1741439447044,-500.0,8.219e-05,2]
[355654356,1741439447053,-500.0,8.219e-05,2]
[355654357,1741439447063,-500.0,8.219e-05,2]
[355654358,1741439447072,-529.74490497,8.219e-05,2]
[355654359,1741439447081,-501.39517346,8.219e-05,2]
[355654360,1741439447091,-500.0,8.219e-05,2]
[355654361,1741439447100,-1107.34836871,8.219e-05,2]
[355654362,1741439447110,-501.94898216,8.219e-05,2]
[355654363,1741439447119,-500.0,8.219e-05,2]
[355654364,1741439447129,-500.0,8.219e-05,2]
[355654365,1741439447138,-500.0,8.219e-05,2]
[355654366,1741439447148,-295.58889588,8.219e-05,2]
[355654367,1741439458292,2000.0,7.756e-05,2]
[355654368,1741439484892,50000.0,0.00025895,30]
[355654369,1741439488357,50000.0,0.00025895,31]
[355654370,1741439491494,50000.0,0.00025895,32]
[355654371,1741439494630,50000.0,0.00025895,33]
[355654372,1741439497383,50000.0,0.00025895,34]
[355654373,1741439500511,50000.0,0.00025895,35]
[355654374,1741439503789,50000.0,0.00025895,36]
[355654375,1741439507351,50000.0,0.00025895,37]
[355654376,1741439510933,50000.0,0.00025895,38]
[355654377,1741439514273,50000.0,0.00025895,39]
[355654378,1741439751840,829.49,7.628e-05,2]
[355654379,1741439909525,864.912,8.055e-05,2]
[355654380,1741440006481,2163.95866475,7.592e-05,2]
[355654381,1741440006505,10000.0,7.592e-05,2]
[355654382,1741440006527,10000.0,7.592e-05,2]
[355654383,1741440006550,1736.04133525,7.592e-05,2]
[355654384,1741440015779,209.48,8.082e-05,2]
[355654385,1741440081197,50000.0,0.00025895,30]
[355654386,1741440084926,50000.0,0.00025895,31]
[355654387,1741440088035,50000.0,0.00025895,32]
[355654388,1741440091061,50000.0,0.00025895,33]
[355654389,1741440094494,50000.0,0.00025895,34]
[355654390,1741440097671,50000.0,0.00025895,35]
[355654391,1741440100581,168.24,7.779e-05,2]
[355654392,1741440100941,50000.0,0.00025895,36]
[355654393,1741440104355,50000.0,0.00025895,37]
[355654394,1741440107768,50000.0,0.00025895,38]
[355654395,1741440111209,50000.0,0.00025895,39]
[355654396,1741440308489,2107.49075071,0.00025896,90]
[355654398,1741440311215,507.22141429,0.00025896,30]
[355654399,1741440312136,379.08482754,0.00025896,30]
[355654400,1741440312788,262.50851666,0.00025896,91]
[355654401,1741440314803,869.59244818,0.00025896,30]
[355654402,1741440316232,1000.0,0.00025896,30]
[355654403,1741440321737,860.69539215,0.00025896,120]
[355654404,1741440321970,1996.05315702,0.00025896,30]
[355654405,1741440323934,733.8089323,0.00025896,30]
[355654406,1741440327056,336.22093951,0.00025896,30]
[355654407,1741440328405,1679.48724071,0.00025896,30]
[355654410,1741440337042,263.23521083,0.00025896,30]
[355654411,1741440350161,851.77504173,0.00025896,30]
[355654413,1741440358143,859.92185675,0.00025896,30]
[355654414,1741440360823,1099.07493145,0.00025896,90]
[355654415,1741440367313,926.25718315,0.00025896,30]
[355654416,1741440369111,171.0155039,0.00025896,60]
[355654417,1741440372612,505.84587456,0.00025896,120]
[355654418,1741440372661,161.6750813,0.00025896,30]
[355654419,1741440372886,207.31558672,0.00025896,30]
[355654420,1741440373319,956.90654844,0.00025896,30]
[355654421,1741440376232,681.54444775,0.00025896,120]
[355654422,1741440389359,349.74632064,0.00025896,30]
[355654423,1741440390511,156.11066792,0.00025896,60]
[355654424,1741440404681,205.23865931,0.00025896,30]
[355654425,1741440412969,188.78860721,0.00025896,120]
[355654426,1741440420521,156.01186185,0.00025896,120]
[355654443,1741440454885,403.36004814,0.00025896,120]
[355654444,1741440464949,323.46464998,0.00025896,120]
[355654445,1741440468119,511.00761562,0.00025896,120]
[355654446,1741440468931,424.91576382,0.00025896,120]
[355654447,1741440472170,1079.77255242,0.00025896,30]
[355654448,1741440473154,405.38742896,0.00025896,120]
[355654449,1741440484084,208.76726836,0.00025896,120]
[355654450,1741440488782,180.00473743,0.00025896,120]
[355654453,1741440489347,880.18952577,0.00025896,30]
[355654457,1741440506959,339.97391714,0.00025896,120]
[355654458,1741440507730,993.34096237,0.00025896,120]
[355654459,1741440507916,596.49965221,0.00025896,120]
[355654460,1741440509884,202.7135712,0.00025896,30]
[355654461,1741440510258,577.6709962,0.00025896,120]
[355654462,1741440512882,1641.22807455,0.00025896,30]
[355654463,1741440512970,1545.85352773,0.00025896,120]
[355654464,1741440513630,265.514962,0.00025896,30]
[355654465,1741440513908,2677.43380229,0.00025896,30]
[355654466,1741440513952,462.9344875,0.00025896,45]
[355654467,1741440514276,1758.84523536,0.00025896,30]
[355654468,1741440514524,2313.72090131,0.00025896,30]
[355654469,1741440515140,185.73379739,0.00025896,60]
[355654470,1741440515492,2031.57271013,0.00025896,120]
[355654471,1741440515787,2193.6239197,0.00025896,120]
[355654472,1741440516018,1456.22508522,0.00025896,30]
[355654473,1741440516803,952.06411137,0.00025896,120]
[355654475,1741440518198,2185.27856943,0.00025896,30]
[355654476,1741440518496,355.24489343,0.00025896,120]
[355654477,1741440523589,425.05938304,0.00025896,30]
[355654502,1741440625157,6300.0,0.000165,60]
[355654511,1741440631508,-614.46,8.119e-05,2]
[355654513,1741440631633,-372.56016086,8.119e-05,2]
[355654514,1741440631643,-206.09242034,8.125e-05,2]
[355654515,1741440631875,-343.90757966,8.125e-05,2]
[355654518,1741440631886,-55.52145034,8.131e-05,2]
[355654569,1741440636422,4013.62165595,5e-05,2]
[355654591,1741440637958,-94.47854966,8.131e-05,2]
[355654593,1741440637968,-300.0,8.189e-05,2]
[355654595,1741440637977,-21410.59665058,8.19e-05,2]
[355654597,1741440637988,-1042.82955653,8.19e-05,2]
[355654602,1741440638023,-6841.19917204,8.19e-05,2]
[355654604,1741440638034,-17927.52282544,8.19e-05,2]
[355654606,1741440638043,-500.0,8.218e-05,2]
[355654608,1741440638052,-500.0,8.218e-05,2]
[355654610,1741440638061,-414.91878394,8.218e-05,2]
[355654612,1741440638070,-500.0,8.218e-05,2]
[355654614,1741440638079,-435.525654,8.219e-05,2]
[355654616,1741440638088,-729.350993,8.219e-05,2]
[355654618,1741440638097,-503.04332839,8.219e-05,2]
[355654620,1741440638105,-502.74154746,8.219e-05,2]
[355654622,1741440638115,-188.086209,8.219e-05,2]
[355654624,1741440638123,-171.917675,8.219e-05,2]
[355654626,1741440638132,-516.61876544,8.219e-05,2]
[355654628,1741440638141,-500.0,8.219e-05,2]
[355654630,1741440638150,-500.0,8.219e-05,2]
[355654632,1741440638158,-500.0,8.219e-05,2]
[355654633,1741440638167,-500.0,8.219e-05,2]
[355654635,1741440638176,-500.0,8.219e-05,2]
[355654637,1741440638185,-470.78121832,8.219e-05,2]
[355654640,1741440638202,-29.21878168,8.219e-05,2]
[355654642,1741440638211,-500.0,8.219e-05,2]
[355654644,1741440638220,-500.0,8.219e-05,2]
[355654646,1741440638230,-500.0,8.219e-05,2]
[355654648,1741440638239,-500.0,8.219e-05,2]
[355654650,1741440638248,-500.0,8.219e-05,2]
[355654652,1741440638258,-512.85735094,8.219e-05,2]
[355654654,1741440638267,-500.0,8.219e-05,2]
[355654656,1741440638279,-500.0,8.219e-05,2]
[355654658,1741440638289,-500.0,8.219e-05,2]
[355654660,1741440638298,-500.0,8.219e-05,2]
[355654662,1741440638307,-500.59540292,8.219e-05,2]
[355654664,1741440638316,-500.0,8.219e-05,2]
[355654666,1741440638325,-536.8,8.219e-05,2]
[355654668,1741440638333,-500.0,8.219e-05,2]
[355654670,1741440638342,-500.0,8.219e-05,2]
[355654671,1741440638351,-500.0,8.219e-05,2]
[355654674,1741440638360,-500.0,8.219e-05,2]
[355654675,1741440638369,-500.0,8.219e-05,2]
[355654677,1741440638379,-500.0,8.219e-05,2]
[355654679,1741440638388,-500.0,8.219e-05,2]
[355654681,1741440638397,-500.0,8.219e-05,2]
[355654683,1741440638406,-500.0,8.219e-05,2]
[355654685,1741440638415,-157.07039666,8.219e-05,2]
[355654687,1741440638424,-500.0,8.219e-05,2]
[355654689,1741440638433,-500.0,8.219e-05,2]
[355654691,1741440638443,-519.72,8.219e-05,2]
[355654693,1741440638452,-500.0,8.219e-05,2]
[355654695,1741440638461,-500.0,8.219e-05,2]
[355654697,1741440638470,-500.0,8.219e-05,2]
[355654699,1741440638479,-500.0,8.219e-05,2]
[355654701,1741440638488,-549.95962267,8.219e-05,2]
[355654703,1741440638496,-537.0734918,8.219e-05,2]
[355654705,1741440638505,-500.0,8.219e-05,2]
[355654707,1741440638514,-500.0,8.219e-05,2]
[355654709,1741440638525,-500.0,8.219e-05,2]
[355654711,1741440638534,-500.0,8.219e-05,2]
[355654713,1741440638542,-394.60866337,8.219e-05,2]
[355654715,1741440638551,-500.0,8.219e-05,2]
[355654717,1741440638562,-500.0,8.219e-05,2]
[355654719,1741440638571,-500.0,8.219e-05,2]
[355654721,1741440638581,-500.0,8.219e-05,2]
[355654723,1741440638591,-500.0,8.219e-05,2]
[355654725,1741440638600,-505.62178398,8.219e-05,2]
[355654727,1741440638609,-500.0,8.219e-05,2]
[355654729,1741440638619,-500.0,8.219e-05,2]
[355654731,1741440638629,-523.42,8.219e-05,2]
[355654733,1741440638638,-500.0,8.219e-05,2]
[355654735,1741440638648,-500.0,8.219e-05,2]
[355654737,1741440638658,-500.0,8.219e-05,2]
[355654739,1741440638667,-511.93,8.219e-05,2]
[355654741,1741440638678,-500.0,8.219e-05,2]
[355654743,1741440638687,-500.0,8.219e-05,2]
[355654745,1741440638697,-500.0,8.219e-05,2]
[355654747,1741440638706,-500.0,8.219e-05,2]
[355654749,1741440638715,-377.69179082,8.219e-05,2]
[355654751,1741440638724,-500.0,8.219e-05,2]
[355654753,1741440638734,-500.0,8.219e-05,2]
[355654755,1741440638742,-500.0,8.219e-05,2]
[355654757,1741440638753,-500.0,8.219e-05,2]
[355654759,1741440638762,-500.0,8.219e-05,2]
[355654761,1741440638771,-500.0,8.219e-05,2]
[355654763,1741440638781,-500.0,8.219e-05,2]
[355654765,1741440638790,-500.0,8.219e-05,2]
[355654767,1741440638800,-500.0,8.219e-05,2]
[355654769,1741440638809,-500.0,8.219e-05,2]